Cogmind - Beta 10.2 *** ADVENTURER MODE // 2021.08.12 @ 19:25:02 Player: BoomBlip Result: Destroyed by H-66 Slayer with Gauss Rifle Performance ------------- Evolutions (4) 2000 Regions Visited (6) 1200 Robots Destroyed (53) 265 Value Destroyed (1355) 1355 Prototype IDs (5) 100 Alien Tech Used (0) 0 Bonus (110) 110 TOTAL SCORE: 5030 Bonus ------- High Alert Combat Kills 110 Cogmind --------- Core Integrity 0/850 Matter 42/300 Energy 98/100 System Corruption 0% Temperature Cool (0) Movement Core (50) Location -6/Factory Parts ------- > --- POWER (1) -------- (None) > --- PROPULSION (4) --- (None) > --- UTILITY (6) ------ (None) > --- WEAPON (4) ------- (None) > --- INVENTORY (4) ---- Nuclear Pulse Thruster Advanced Sensor Array Rocket Launcher Improved Grenade Launcher Peak State ------------ > --- POWER ------------ Improved Ion Engine > --- PROPULSION ------- Improved Hover Unit Flight Unit Improved Flight Unit > --- UTILITY ---------- Heat Sink Heat Sink Large Storage Unit Medium Armor Plating > --- WEAPON ----------- Shotgun Improved Assault Rifle Improved Assault Rifle > --- INVENTORY -------- Improved Targeting Computer Medium Armor Plating Advanced Beam Cannon Advanced Beam Cannon Improved Assault Rifle Rocket Launcher [Rating: 22] Favorites ----------- Power Ion Engine Engine Ion Engine Propulsion Improved Treads Treads Improved Treads Hover Unit Improved Gravmag System Flight Unit Improved Flight Unit Utility Heat Sink Device Heat Sink Storage Small Storage Unit Processor Improved Targeting Computer Protection Light Armor Plating Weapon Improved Assault Rifle Energy Gun EM Pulse Gun Energy Cannon Advanced Beam Cannon Ballistic Gun Improved Assault Rifle Ballistic Cannon Light Cannon Launcher Rocket Launcher Special Weapon Remote Datajack Build | -11 -10 -9 -9 -8 -7 -6 ------- Run | Scr Mat Mat Sto Mat Fac Fac Slots Evolved 8 | . . 2 . 2 2 2 Power . | . . . . . . . Propulsion 2 | . . . . 1 1 . Utility 4 | . . 1 . 1 . 2 Weapon 2 | . . 1 . . 1 . Parts Attached 65 | 6 3 6 34 10 4 2 Power 7 | 1 . . 6 . . . Engine 7 | 1 . . 6 . . . Core . | . . . . . . . Reactor . | . . . . . . . Propulsion 15 | 2 . 2 4 4 2 1 Treads 8 | 2 . 2 4 . . . Leg . | . . . . . . . Wheel . | . . . . . . . Hover 2 | . . . . 1 . 1 Flight 5 | . . . . 3 2 . Utility 16 | 1 1 2 8 3 . 1 Device 7 | . . 1 4 1 . 1 Storage 2 | 1 . . 1 . . . Processor 1 | . . . . 1 . . Hackware . | . . . . . . . Protection 6 | . 1 1 3 1 . . Artifact . | . . . . . . . Weapon 27 | 2 2 2 16 3 2 . Energy Gun 2 | 2 . . . . . . Energy Cannon 3 | . . . 1 1 1 . Ballistic Gun 14 | . 1 1 11 1 . . Ballistic Cannon 3 | . 1 1 . 1 . . Launcher 4 | . . . 4 . . . Special Weapon 1 | . . . . . 1 . Impact Weapon . | . . . . . . . Slashing Weapon . | . . . . . . . Piercing Weapon . | . . . . . . . Special Melee Weapon . | . . . . . . . Unidentified Prototypes 5 | . . . 3 1 1 . Parts Lost 7 | . . . 1 2 . 4 Power . | . . . . . . . Propulsion 5 | . . . . 2 . 3 Utility 1 | . . . 1 . . . Weapon 1 | . . . . . . 1 Highest Loss Streak 3 | . . . 1 1 . 3 Average Slot Usage (%) 77 | . 88 94 99 32 23 3 Engine 8 | . 14 11 11 4 . . Treads 17 | . 28 22 22 . . . Flight 2 | . . . . 15 15 1 Device 6 | . . 5 11 1 . . Storage 8 | . 14 11 11 . . . Protection 7 | . 3 11 10 . . . Energy Gun 1 | . 9 . . . . . Energy Cannon 2 | . . . 4 . 6 . Ballistic Gun 15 | . 8 11 25 4 . . Ballistic Cannon 5 | . 8 22 2 . . . Naked Turns 133 | . . . . . . 133 Heaviest Build 40 | 12 16 22 40 10 4 4 Greatest Support 46 | 40 40 46 46 12 11 14 Greatest Overweight (x) . | . . . . . . . Average Overweight (x) . | . . . . . . . Largest Inventory Capacity 10 | 6 6 6 10 10 4 4 Average Capacity 6 | 5 6 6 8 4 4 4 Most Carried 10 | 1 5 6 10 10 4 4 Average Carried 6 | . 3 5 8 4 3 3 Final Capacity 10 | 6 6 6 10 4 4 4 Final Carried 10 | 1 5 6 10 4 4 4 Class Distribution -------------------- 50% | Tank 39% | Mutant 5% | Scavenger-Tank Dominant Class ---------------- Mutant | -10/Materials Tank | -9/Materials Tank | -9/Storage Mutant | -8/Materials Mutant | -7/Factory Mutant | -6/Factory Resources | -11 -10 -9 -9 -8 -7 -6 ----------- Run | Scr Mat Mat Sto Mat Fac Fac Matter Collected 1352 | 257 . 159 918 . . 18 Remotely . | . . . . . . . Salvage Created 1660 | 58 60 200 1342 . . . Parts 128 | 3 7 17 101 . . . Haulers Intercepted 3 | . . . 3 . . . Recyclers Shooed 1 | . . . 1 . . . Parts Field Recycled . | . . . . . . . Retrieved Matter . | . . . . . . . Parts Self-Destructed . | . . . . . . . Prevented . | . . . . . . . Kills | -11 -10 -9 -9 -8 -7 -6 ------- Run | Scr Mat Mat Sto Mat Fac Fac Combat Hostiles Destroyed 43 | . 3 5 35 . . . Guns 22 | . 1 1 20 . . . Cannons 10 | . . 4 6 . . . AOE 11 | . 2 . 9 . . . Classes Destroyed 8 | 1 2 2 3 . . . Worker 1 | . . . 1 . . . Builder 2 | . . . 2 . . . Hauler 3 | . . . 3 . . . Recycler 2 | 1 . . 1 . . . Watcher 2 | . 1 . 1 . . . Swarmer 15 | . 3 . 12 . . . Grunt 16 | . . 1 15 . . . Sentry 12 | . . 4 8 . . . Best Kill Streak 9 | 1 4 2 9 . . . Combat Bots Only 8 | . 3 2 8 . . . Max Kills in Single Turn 3 | 1 3 1 3 . . . Gunslinging . | . . . . . . . Exploded 3 | . 2 . 3 . . . Melee . | . . . . . . . Uniques/NPCs Destroyed . | . . . . . . . Combat | -11 -10 -9 -9 -8 -7 -6 -------- Run | Scr Mat Mat Sto Mat Fac Fac Damage Taken 2663 | . 127 163 886 388 26 1073 Core 1274 | . 8 33 96 257 16 864 Absorbed by Shields 25 | . . . . . . 25 Core Remaining (%) 82 | 100 96 . 67 53 97 . Volleys Fired 92 | 2 5 11 74 . . . Largest 3 | 2 2 3 3 . . . Hottest 114 | 80 80 93 114 . . . Shots Fired 268 | 4 10 33 221 . . . Gun 191 | 4 10 11 166 . . . Cannon 69 | . . 22 47 . . . Launcher 8 | . . . 8 . . . Special . | . . . . . . . Kinetic 217 | . . 33 184 . . . Thermal 36 | 2 5 . 29 . . . Explosive 8 | . . . 8 . . . Electromagnetic 7 | 2 5 . . . . . Robot Hit Streak 20 | 4 3 20 17 . . . Robot Miss Streak 4 | . 3 1 4 . . . Penetration Max . | . . . . . . . Secondary Targets . | . . . . . . . Shots Hit Robots 161 | 4 6 27 124 . . . Core Hits 77 | 2 4 9 60 . . 2 Critical Hits 4 | . . . 4 . . . Critical Kills 2 | . . . 2 . . . Critical Parts Destroyed 2 | . . . 2 . . . Melee Attacks . | . . . . . . . Impact . | . . . . . . . Slashing . | . . . . . . . Piercing . | . . . . . . . Sneak Attacks . | . . . . . . . Combat Hostiles . | . . . . . . . Follow-up Attacks . | . . . . . . . Damage Inflicted 3152 | 50 137 297 2653 . . 15 Guns 1530 | 48 35 103 1344 . . . Cannons 615 | . . 194 421 . . . Explosions 990 | . 102 . 888 . . . Melee . | . . . . . . . Ramming 17 | 2 . . . . . 15 Kinetic 1713 | . . 297 1416 . . . Thermal 485 | 22 114 . 349 . . . Explosive 888 | . . . 888 . . . Electromagnetic 49 | 26 23 . . . . . Impact . | . . . . . . . Slashing . | . . . . . . . Piercing . | . . . . . . . Highest Corruption . | . . . . . . . Average Corruption . | . . . . . . . Corruption Purged . | . . . . . . . Overload Shots . | . . . . . . . Overflow Damage 16 | . . . 16 . . . Projectiles . | . . . . . . . Explosions 16 | . . . 16 . . . Melee . | . . . . . . . Knockbacks . | . . . . . . . Impact . | . . . . . . . Kinetic . | . . . . . . . Secondary . | . . . . . . . Self-Inflicted Damage 78 | . 28 . 43 . . 7 Shots 3 | . 1 . 2 . . . Rammed 6 | 1 . . . . . 5 Targets Rammed 6 | 1 . . . . . 5 Kicked . | . . . . . . . Crushed . | . . . . . . . Highest Temperature 232 | 18 102 99 232 . . 17 Average Temperature 43 | 12 49 23 49 . . 17 Received Heat Transfer 882 | . . 69 330 216 . 267 Siege Activations . | . . . . . . . Robots Corrupted . | . . . . . . . Combat Hostiles . | . . . . . . . Parts Fried . | . . . . . . . Impact Corruptions . | . . . . . . . Robots Melted . | . . . . . . . Combat Hostiles . | . . . . . . . Parts Melted . | . . . . . . . Heat Transferred 804 | 50 125 . 629 . . . Parts Sabotaged . | . . . . . . . Parts Stolen . | . . . . . . . Parts Stripped . | . . . . . . . Power Chain Reactions 1 | . 1 . . . . . Missiles Intercepted . | . . . . . . . Alert | -11 -10 -9 -9 -8 -7 -6 ------- Run | Scr Mat Mat Sto Mat Fac Fac Peak Influence 721 | 5 79 204 721 332 185 308 Initial 237 | . 2 28 73 237 125 78 Average 231 | 3 65 62 369 173 138 170 Maximum Alert Level 3 | . . 1 3 1 . 1 Low Security (%) 52 | 100 100 93 16 57 100 64 Level 1 30 | . . 6 49 42 . 35 Level 2 16 | . . . 33 . . . Level 3 . | . . . . . . . Level 4 . | . . . . . . . Level 5 . | . . . . . . . High Security . | . . . . . . . Max Security . | . . . . . . . Squads Dispatched 16 | . . 1 9 3 2 1 Investigation . | . . . . . . . Extermination . | . . . . . . . Reinforcement 13 | . . 1 6 3 2 1 Assault . | . . . . . . . Garrison 3 | . . . 3 . . . Intercept . | . . . . . . . Construction Impeded 1 | . . . 1 . . . Haulers Reinforced . | . . . . . . . Stealth | -11 -10 -9 -9 -8 -7 -6 --------- Run | Scr Mat Mat Sto Mat Fac Fac Distress Signals 14 | . 1 4 2 7 . . Communications Jammed . | . . . . . . . Distress Signals . | . . . . . . . Times Spotted 117 | . 4 8 51 33 5 16 Peak Tracking Total 22 | . 4 3 6 22 3 9 Tactical Retreats 10 | . . . 1 2 1 6 Traps | -11 -10 -9 -9 -8 -7 -6 ------- Run | Scr Mat Mat Sto Mat Fac Fac Traps Triggered 2 | . . . . . . 2 Indirectly . | . . . . . . . Trap Hack Attempts . | . . . . . . . Triggered . | . . . . . . . Disarmed . | . . . . . . . Reprogrammed . | . . . . . . . Reused . | . . . . . . . Traps Extracted . | . . . . . . . Installed . | . . . . . . . Triggered . | . . . . . . . Machines | -11 -10 -9 -9 -8 -7 -6 ---------- Run | Scr Mat Mat Sto Mat Fac Fac Machines Disabled 6 | . . 1 5 . . . Max in Single Turn 1 | . . 1 1 . . . Machines Sabotaged . | . . . . . . . Garrisons Compromised . | . . . . . . . Overloaded Fab Kills . | . . . . . . . Fab Network Shutdowns . | . . . . . . . Hacking | -11 -10 -9 -9 -8 -7 -6 --------- Run | Scr Mat Mat Sto Mat Fac Fac Machines Accessed 6 | . . 2 2 2 . . Terminals 6 | . . 2 2 2 . . Fabricators . | . . . . . . . Repair Stations . | . . . . . . . Recycling Units . | . . . . . . . Scanalyzers . | . . . . . . . Garrison Access . | . . . . . . . Total Hacks 11 | . . 3 6 2 . . Successful 3 | . . 1 1 1 . . Failed 8 | . . 2 5 1 . . Catastrophic 2 | . . 1 . 1 . . Database Lockouts . | . . . . . . . Manual 13 | . . 3 8 2 . . Terminals 11 | . . 3 6 2 . . Fabricators . | . . . . . . . Repair Stations . | . . . . . . . Recycling Units . | . . . . . . . Scanalyzers . | . . . . . . . Garrison Access . | . . . . . . . Terminal Hacks 3 | . . 1 1 1 . . Unreport Threat 3 | . . 1 1 1 . . Fabricator Hacks . | . . . . . . . Repair Station Hacks . | . . . . . . . Recycling Unit Hacks . | . . . . . . . Scanalyzer . | . . . . . . . Garrison Access Hacks . | . . . . . . . Unauthorized Hacks . | . . . . . . . Terminals . | . . . . . . . Fabricators . | . . . . . . . Repair Stations . | . . . . . . . Recycling Units . | . . . . . . . Scanalyzers . | . . . . . . . Garrison Access . | . . . . . . . Data Cores Recovered . | . . . . . . . Used . | . . . . . . . Hacking Detections 5 | . . 1 2 2 . . Full Trace Events . | . . . . . . . Feedback Events . | . . . . . . . Feedback Blocked . | . . . . . . . Robot Schematics Acquired . | . . . . . . . Robots Built . | . . . . . . . Matter . | . . . . . . . Time . | . . . . . . . Total Robot Build Rating . | . . . . . . . Part Schematics Acquired . | . . . . . . . Parts Built . | . . . . . . . Matter . | . . . . . . . Time . | . . . . . . . Total Part Build Rating . | . . . . . . . Parts Repaired . | . . . . . . . Time . | . . . . . . . Parts Recycled . | . . . . . . . Recycled Matter . | . . . . . . . Retrieved Matter . | . . . . . . . Retrieved Components . | . . . . . . . Parts Scanalyzed . | . . . . . . . Part Schematics Acquired . | . . . . . . . Parts Damaged . | . . . . . . . Bothacking | -11 -10 -9 -9 -8 -7 -6 ------------ Run | Scr Mat Mat Sto Mat Fac Fac Used RIF Installer . | . . . . . . . Robots Hacked . | . . . . . . . Non-combat . | . . . . . . . Combat . | . . . . . . . Robot Hacks Applied . | . . . . . . . Relay Couplers Released . | . . . . . . . Robots Rewired . | . . . . . . . Allies Hacked . | . . . . . . . Hacks Repelled . | . . . . . . . Allies | -11 -10 -9 -9 -8 -7 -6 -------- Run | Scr Mat Mat Sto Mat Fac Fac Total Allies . | . . . . . . . Largest Group . | . . . . . . . Highest-Rated Group . | . . . . . . . Highest-Rated Ally . | . . . . . . . Total Orders . | . . . . . . . Ally Attacks . | . . . . . . . Total Damage . | . . . . . . . Kills . | . . . . . . . Allies Corrupted . | . . . . . . . Allies Melted . | . . . . . . . Intel | -11 -10 -9 -9 -8 -7 -6 ------- Run | Scr Mat Mat Sto Mat Fac Fac Robot Analysis Total . | . . . . . . . Derelict Logs Recovered . | . . . . . . . Drone Launches . | . . . . . . . Drone Recoveries . | . . . . . . . Exploration | -11 -10 -9 -9 -8 -7 -6 ------------- Run | Scr Mat Mat Sto Mat Fac Fac Turns Passed 2463 | 122 303 269 1196 130 200 243 Spaces Moved 2159 | 69 175 139 534 323 460 459 Core 264 | 4 . . . . . 260 Treads 913 | 65 175 139 534 . . . Legs . | . . . . . . . Wheels . | . . . . . . . Hover 76 | . . . . . . 76 Flight 906 | . . . . 323 460 123 Fastest Speed 32 | 50 160 160 160 32 32 32 Average Speed 90 | 153 160 160 160 33 34 47 Slowest Speed 160 | 160 160 160 160 35 35 60 Overloaded Moves . | . . . . . . . Propulsion Burnouts . | . . . . . . . Robots Hopped 4 | . . . . . 3 1 Cave-ins Triggered . | . . . . . . . Exploration Rate (%) 30 | 4 34 14 81 45 14 18 Regions Visited 6 Branch Regions 1 Pre-discovered Areas . | . . . . . . . Known Exits Taken . | . . . . . . . Unknown Exits Taken 6 | 1 1 1 1 1 1 . Scrap Searched . | . . . . . . . Spaces Dug 8 | . . . 8 . . . Terrain Destroyed 55 | . 3 . 52 . . . Melee . | . . . . . . . Projectile . | . . . . . . . AOE 55 | . 3 . 52 . . . Terrain Rammed . | . . . . . . . Walls Destroyed . | . . . . . . . Machines Disabled . | . . . . . . . Actions | -11 -10 -9 -9 -8 -7 -6 --------- Run | Scr Mat Mat Sto Mat Fac Fac Total 2483 | 78 188 165 724 348 497 483 Wait 76 | . . . 44 . 32 . Move 2145 | 68 174 138 533 322 453 457 Hop 4 | . . . . . 3 1 Pick Up 22 | 1 4 4 9 . 2 2 Fast Attach 26 | 6 3 2 9 2 3 1 Attach 8 | . . 1 . 5 1 1 Detach 2 | . . . . 2 . . Swap 31 | . . 3 25 3 . . Drop 57 | . 2 6 30 14 3 2 Fire 92 | 2 5 11 74 . . . Melee . | . . . . . . . Ram 5 | . . . . . . 5 Kick . | . . . . . . . Crush 1 | 1 . . . . . . Escape Stasis 14 | . . . . . . 14 Rewire . | . . . . . . . Trap . | . . . . . . . Miscellaneous . | . . . . . . . Route ------- -11/Scrapyard -10/Materials -9/Materials -9/Storage -8/Materials -7/Factory -6/Factory (discovered 1 exit: [*Fac]) History --------- Turn | Location | Event 55 | -11/Scrapyard | Discovered new exit (range 13) 123 | -11/Scrapyard | Entered Materials 313 | -10/Materials | Build established: Mutant 375 | -10/Materials | Discovered new exit (range 8) 426 | -10/Materials | Entered another Materials area 426 | -9/Materials | Evolved 2 slots: Utility x1, Weapon x1 673 | -9/Materials | Discovered new exit (range 8) 695 | -9/Materials | Entered Storage 1262 | -9/Storage | Build established: Tank 1434 | -9/Storage | Garrison activated, responded to threat 1577 | -9/Storage | Destroyed 8 combat bots 1879 | -9/Storage | Discovered new exit (range 7) 1891 | -9/Storage | Entered Materials 1891 | -8/Materials | Evolved 2 slots: Propulsion x1, Utility x1 2018 | -8/Materials | Discovered new exit (range 11) 2021 | -8/Materials | Entered Factory 2021 | -7/Factory | Evolved 2 slots: Propulsion x1, Weapon x1 2215 | -7/Factory | Discovered new exit (range 11) 2221 | -7/Factory | Entered another Factory area 2221 | -6/Factory | Evolved 2 slots: Utility x2 2309 | -6/Factory | Lost 3 parts (2n1w) 2349 | -6/Factory | Build established: Mutant 2377 | -6/Factory | Core integrity fell below 50% 2388 | -6/Factory | Core integrity fell below 20% 2460 | -6/Factory | Discovered new exit (range 16) 2464 | -6/Factory | Destroyed by H-66 Slayer with Gauss Rifle Last Messages --------------- 02342_ Destabilizing: Core damaged (-42). 02359_ Drone sends a signal. 02379_ Slug penetrates Wall. 02383_ Penetrated by Slug. 02384_ Slug penetrates Wall. 02386_ Penetrated by Slug. 02389_ Slug penetrates Wall. 02391_ Acquired 5 matter. 02392_ Slug penetrates Pressure Siphon. 02392_ Acquired 1 matter. 02392_ Acquired 5 matter. 02392_ Slug penetrates Pressure Siphon. 02392_ Pressure Siphon disabled. 02392_ Slug penetrates Wall. 02393_ Acquired 2 matter. 02393_ K-01 Serf collects debris. 02456_ Penetrated by Slug. 02460_ EXIT=FOUND 02461_ Slug penetrates Wall. 02464_ Penetrated by Slug. Map ----- +----------------------------------------------------+ | ?????????## ##?? ???# #??? | | ?????????# ] ####+##### #### | | ?????????+ | | ?????????# #### | | ?????????##+##??# | | ????????????????# | | ????????????????# | | ????????????????# ^ | | ?????????????####+#### ########## | | ?????????????#] # # ## | | ?????????????# / + + "T" ## % | | ?????????????# # # ## % | | ?????????????######### #??####### | | ???????????????????###+########## " | | ???????????????????# ## | | ??????????????###### """ """ ## " | | ?????????????? # """ """ ## " | | ?????????????# # """ """ #### " | | ?????????????# < #[ "" "" #??# " | | ?????????????# # "" "" #??# | | ?????????????# #! #??# | | ?##??????????# #############??# | | ? ????????# #??????????????# ### | | # !**??????# #??????????????# ??? | | # !** ????# #??????????????# ??? | | # !** ??#@ #??????????????# ??? | | # # +??????????????? ??? | | # + h#??????????????????? | | # # #??????????????????? | | # """""""??# #??????????????????? | | ?????""""????# #??????????????????? | | ?????????????# ########???????????? | | ?????????????# # ????????????? | | ?????????????# # ????????????? | | ?????????????# # """ ?????????????? | | ?????????????# # """ ?????????????? | | ?????????????# #?"""??????????????? | | ?????????????# #? ??????????????? | | ?????????????# ###+################ | | ?????????????# | | ?????????????# | | ?????????????# | | ?????????????# | | ?????????????# | | ?????????????##########+############### | | ???????????????# #??????? | | ???????????????# #??????? | | ???????????????# """ """ """ #??????? | | ???????????????# """ """ """ #??????? | | ???????????????# """ """ """ #??????? | +----------------------------------------------------+ Best States ------------- Heat Dissipation 51 Energy Generation 14 Energy Capacity 280 Matter Stores 300 Matter Capacity 300 Sight Range 16 Terrain Scan Density 10 Armor Coverage 225 Resistance: KI 20 Resistance: TH 20 Resistance: EX 20 Resistance: EM 20 Resistance: I 20 Resistance: S 20 Resistance: P 20 Evasion (%) 63 Targeting Accuracy 6 Recoil Reduction 2 Offensive Hacking 10 Item Schematics ----------------- None Robot Schematics ------------------ None Fabricated ------------ Nothing Alien Tech Used ----------------- None Achievements -------------- None Challenges ------------ None Game ------ Seed SeismicPrecisionPod Manual? 0 Play Time 00:29:24 Cumulative 56.3 hours Start 2021.08.12 @ 18:56:53 End 2021.08.12 @ 19:25:02 Sessions 1 Manual Loads 0 Difficulty Adventurer Special Mode None Game No. 89 Rogue 81 Adventurer 6 Explorer 2 Win Type - Total 0 Types 0/0/0/0/0/0/0/0/0 Lore% 10 Gallery% 42 Achievement% 17 Wizard Run 0 Options --------- ASCII 0 Keyboard 0 Movement Arrows Keybinds 0 Fullscreen 1 Font 36/Smallcaps Map View 76x50 Tactical HUD 1 Map Filters NONE Filters NONE Steam 1 RUN: ad47d8b5-5bfc-43c8-a693-907e210ff131